{"text_format":"3","workbook":"xlsx","n_sheets":3,"sheets":["START","MARKETINGBUDGETPLAN","CATEGORIEDIAGRAM"],"not_rendered":{"charts":1,"defined_names":4,"pivot_tables":1},"read":"whole","date_system":"1900"}

{"sheet":"START","index":0,"n_rows":7,"n_cols":2,"rows_kept":7}
[null,"Over de sjabloon"]
[null,"Maak een marketingbegrotingsplan en categoriediagram in deze werkmap."]
[null,"Voer categorieën, hoeveelheden en kosten in de tabel in op het werkblad Marketingbudgetplan. De kosten van het evenement en de geschatte totale marketingkosten worden automatisch berekend."]
[null,"Het geclusterde kolomdiagram wordt automatisch bijgewerkt in het werkblad van het categoriediagram."]
[null,"Opmerking: "]
[null,"Kolom A in de werkbladen MARKETINGBUDGETPLAN en CATEGORIEDIAGRAM bevat aanvullende instructies. Deze tekst is opzettelijk verborgen. Als u tekst wilt verwijderen, selecteert u kolom A en selecteert u Delete. Als u tekst wilt weergeven/verbergen, selecteert u de tekstoptie Aanvullende instructies hieronder."]
[null,"Als u meer wilt weten over een tabel, drukt u in de tabel op Shift en F10 en selecteert u de optie Tabel en vervolgens Alternatieve tekst. Als u meer wilt weten over een draaitabel, drukt u in een tabel op Shift en F10 en selecteert u Opties voor draaitabel en vervolgens het tabblad Alternatieve tekst."]

{"sheet":"MARKETINGBUDGETPLAN","index":1,"n_rows":61,"n_cols":7,"rows_kept":61,"merged":[[3,1,3,2],[4,1,4,2],[5,1,5,2],[6,1,6,2]]}
[]
[null,"MARKETINGBUDGETPLAN"]
[{"$nulls":4},"De slicer om de gegevenstabel te filteren op basis van de primaire categorie bevindt zich in deze cel."]
[null,"AANTAL DEELNEMERS",null,50]
[null,"KOSTEN VAN EVENEMENT",null,{"$f":"SUMIF(Gegevens[Primaire categorie],\"Evenement\",Gegevens[Geschat subtotaal])","v":{"v":2500,"d":"€ 2,500.00"}}]
[null,"PRIJS per PERSOON voor het EVENEMENT",null,{"$f":"KostenVanEvenement/AantalDeelnemers","v":{"v":50,"d":"€ 50.00"}}]
[null,"GESCHATTE EINDTOTAAL VOOR MARKETING",null,{"$f":"SUMIF(Gegevens[Primaire categorie],\"<>Evenement\",Gegevens[Geschat subtotaal])","v":{"v":45743,"d":"€ 45,743.00"}}]
[null,"SUBTOTAAL",null,{"$f":"SUBTOTAL(109,Gegevens[Geschat subtotaal])","v":{"v":0,"d":"€ 0.00"}}]
[]
[null,"Primaire categorie","Secundaire categorie","Geschatte hoeveelheid","Geschatte kosten per eenheid","Geschat subtotaal","Aantekeningen"]
[null,"Onderzoek","Kosten onderzoeksbedrijf",2,{"v":2300,"d":"€ 2,300.00"},{"$f":"Gegevens[[#This Row],[Geschatte hoeveelheid]]*Gegevens[[#This Row],[Geschatte kosten per eenheid]]","v":{"v":4600,"d":"€ 4,600.00"}}]
[null,"Onderzoek","Internetonderzoek",1,{"v":1100,"d":"€ 1,100.00"},{"$f":"Gegevens[[#This Row],[Geschatte hoeveelheid]]*Gegevens[[#This Row],[Geschatte kosten per eenheid]]","v":{"v":1100,"d":"€ 1,100.00"}}]
[null,"Onderzoek","Onafhankelijk onderzoek",3,{"v":300,"d":"€ 300.00"},{"$f":"Gegevens[[#This Row],[Geschatte hoeveelheid]]*Gegevens[[#This Row],[Geschatte kosten per eenheid]]","v":{"v":900,"d":"€ 900.00"}}]
[null,"Onderzoek","Overig onderzoek",2,{"v":250,"d":"€ 250.00"},{"$f":"Gegevens[[#This Row],[Geschatte hoeveelheid]]*Gegevens[[#This Row],[Geschatte kosten per eenheid]]","v":{"v":500,"d":"€ 500.00"}}]
[null,"Communicatie","Reclamebrochures",{"v":5000,"d":"5,000"},{"v":0.15,"d":"€ 0.15"},{"$f":"Gegevens[[#This Row],[Geschatte hoeveelheid]]*Gegevens[[#This Row],[Geschatte kosten per eenheid]]","v":{"v":750,"d":"€ 750.00"}}]
[null,"Communicatie","Televisie",5,{"v":4000,"d":"€ 4,000.00"},{"$f":"Gegevens[[#This Row],[Geschatte hoeveelheid]]*Gegevens[[#This Row],[Geschatte kosten per eenheid]]","v":{"v":20000,"d":"€ 20,000.00"}}]
[null,"Communicatie","Radio",13,{"v":350,"d":"€ 350.00"},{"$f":"Gegevens[[#This Row],[Geschatte hoeveelheid]]*Gegevens[[#This Row],[Geschatte kosten per eenheid]]","v":{"v":4550,"d":"€ 4,550.00"}}]
[null,"Communicatie","Internet",1,{"v":350,"d":"€ 350.00"},{"$f":"Gegevens[[#This Row],[Geschatte hoeveelheid]]*Gegevens[[#This Row],[Geschatte kosten per eenheid]]","v":{"v":350,"d":"€ 350.00"}}]
[null,"Netwerken","Netwerken",null,null,{"$f":"Gegevens[[#This Row],[Geschatte hoeveelheid]]*Gegevens[[#This Row],[Geschatte kosten per eenheid]]","v":{"v":0,"d":"€ 0.00"}}]
[null,"Netwerken","Lidmaatschappen",3,{"v":50,"d":"€ 50.00"},{"$f":"Gegevens[[#This Row],[Geschatte hoeveelheid]]*Gegevens[[#This Row],[Geschatte kosten per eenheid]]","v":{"v":150,"d":"€ 150.00"}}]
[null,"Netwerken","Filialen",2,{"v":20,"d":"€ 20.00"},{"$f":"Gegevens[[#This Row],[Geschatte hoeveelheid]]*Gegevens[[#This Row],[Geschatte kosten per eenheid]]","v":{"v":40,"d":"€ 40.00"}}]
[null,"Netwerken","Abonnementen",2,{"v":32,"d":"€ 32.00"},{"$f":"Gegevens[[#This Row],[Geschatte hoeveelheid]]*Gegevens[[#This Row],[Geschatte kosten per eenheid]]","v":{"v":64,"d":"€ 64.00"}}]
[null,"Evenement","Aantal genodigden",50,null,{"$f":"Gegevens[[#This Row],[Geschatte hoeveelheid]]*Gegevens[[#This Row],[Geschatte kosten per eenheid]]","v":{"v":0,"d":"€ 0.00"}}]
[null,"Evenement","Maaltijd (ontbijt, lunch of diner)",null,null,{"$f":"Gegevens[[#This Row],[Geschatte hoeveelheid]]*Gegevens[[#This Row],[Geschatte kosten per eenheid]]","v":{"v":0,"d":"€ 0.00"}}]
[null,"Evenement","Eten",null,{"v":23,"d":"€ 23.00"},{"$f":"Gegevens[[#This Row],[Geschatte hoeveelheid]]*Gegevens[[#This Row],[Geschatte kosten per eenheid]]","v":{"v":0,"d":"€ 0.00"}}]
[null,"Evenement","Belasting (10%)",null,{"v":2.3000000000000003,"d":"€ 2.30"},{"$f":"Gegevens[[#This Row],[Geschatte hoeveelheid]]*Gegevens[[#This Row],[Geschatte kosten per eenheid]]","v":{"v":0,"d":"€ 0.00"}}]
[null,"Evenement","Fooi voor eten en drinken (20%)",null,{"v":5.0600000000000005,"d":"€ 5.06"},{"$f":"Gegevens[[#This Row],[Geschatte hoeveelheid]]*Gegevens[[#This Row],[Geschatte kosten per eenheid]]","v":{"v":0,"d":"€ 0.00"}}]
[null,"Evenement","Valet-service",1,{"v":300,"d":"€ 300.00"},{"$f":"Gegevens[[#This Row],[Geschatte hoeveelheid]]*Gegevens[[#This Row],[Geschatte kosten per eenheid]]","v":{"v":300,"d":"€ 300.00"}}]
[null,"Evenement","Entertainment #1",1,{"v":800,"d":"€ 800.00"},{"$f":"Gegevens[[#This Row],[Geschatte hoeveelheid]]*Gegevens[[#This Row],[Geschatte kosten per eenheid]]","v":{"v":800,"d":"€ 800.00"}}]
[null,"Evenement","Entertainment #2",1,{"v":1200,"d":"€ 1,200.00"},{"$f":"Gegevens[[#This Row],[Geschatte hoeveelheid]]*Gegevens[[#This Row],[Geschatte kosten per eenheid]]","v":{"v":1200,"d":"€ 1,200.00"}}]
[null,"Evenement","Overige services",1,{"v":200,"d":"€ 200.00"},{"$f":"Gegevens[[#This Row],[Geschatte hoeveelheid]]*Gegevens[[#This Row],[Geschatte kosten per eenheid]]","v":{"v":200,"d":"€ 200.00"}}]
[null,"Audio-visuele diensten","Eenvoudig PA-systeem en podium",1,{"v":0,"d":"€ 0.00"},{"$f":"Gegevens[[#This Row],[Geschatte hoeveelheid]]*Gegevens[[#This Row],[Geschatte kosten per eenheid]]","v":{"v":0,"d":"€ 0.00"}},"Aanwezig op de locatie (meestal)"]
[null,"Audio-visuele diensten","Scherm",1,{"v":0,"d":"€ 0.00"},{"$f":"Gegevens[[#This Row],[Geschatte hoeveelheid]]*Gegevens[[#This Row],[Geschatte kosten per eenheid]]","v":{"v":0,"d":"€ 0.00"}},"Aanwezig op de locatie (meestal)"]
[null,"Audio-visuele diensten","Huur van XGA data-projector/beamer",1,{"v":45,"d":"€ 45.00"},{"$f":"Gegevens[[#This Row],[Geschatte hoeveelheid]]*Gegevens[[#This Row],[Geschatte kosten per eenheid]]","v":{"v":45,"d":"€ 45.00"}}]
[null,"Audio-visuele diensten","Draadloze muis",1,{"v":12,"d":"€ 12.00"},{"$f":"Gegevens[[#This Row],[Geschatte hoeveelheid]]*Gegevens[[#This Row],[Geschatte kosten per eenheid]]","v":{"v":12,"d":"€ 12.00"}}]
[null,"Audio-visuele diensten","Stekkerdozen",1,{"v":0,"d":"€ 0.00"},{"$f":"Gegevens[[#This Row],[Geschatte hoeveelheid]]*Gegevens[[#This Row],[Geschatte kosten per eenheid]]","v":{"v":0,"d":"€ 0.00"}},"Aanwezig op de locatie (meestal)"]
[null,"Audio-visuele diensten","Verlengsnoeren",1,{"v":0,"d":"€ 0.00"},{"$f":"Gegevens[[#This Row],[Geschatte hoeveelheid]]*Gegevens[[#This Row],[Geschatte kosten per eenheid]]","v":{"v":0,"d":"€ 0.00"}},"Aanwezig op de locatie (meestal)"]
[null,"Audio-visuele diensten","Reversmicrofoon",1,{"v":0,"d":"€ 0.00"},{"$f":"Gegevens[[#This Row],[Geschatte hoeveelheid]]*Gegevens[[#This Row],[Geschatte kosten per eenheid]]","v":{"v":0,"d":"€ 0.00"}},"Aanwezig op de locatie (meestal)"]
[null,"Audio-visuele diensten","Geluids- en beeldtechnici/arbeidskrachten",1,{"v":300,"d":"€ 300.00"},{"$f":"Gegevens[[#This Row],[Geschatte hoeveelheid]]*Gegevens[[#This Row],[Geschatte kosten per eenheid]]","v":{"v":300,"d":"€ 300.00"}}]
[null,"Audio-visuele diensten","Belasting (8,8%)",null,{"v":31.415999999999997,"d":"€ 31.42"},{"$f":"Gegevens[[#This Row],[Geschatte hoeveelheid]]*Gegevens[[#This Row],[Geschatte kosten per eenheid]]","v":{"v":0,"d":"€ 0.00"}}]
[null,"Extra kosten","Uitnodiging \n(kosten voor afdrukken en verzenden)",null,{"v":834,"d":"€ 834.00"},{"$f":"Gegevens[[#This Row],[Geschatte hoeveelheid]]*Gegevens[[#This Row],[Geschatte kosten per eenheid]]","v":{"v":0,"d":"€ 0.00"}}]
[null,"Extra kosten","Tijd en onkosten (T&O)",null,{"v":600,"d":"€ 600.00"},{"$f":"Gegevens[[#This Row],[Geschatte hoeveelheid]]*Gegevens[[#This Row],[Geschatte kosten per eenheid]]","v":{"v":0,"d":"€ 0.00"}}]
[null,"Extra kosten","T&O voor bedrijfsmedewerkers",null,{"v":200,"d":"€ 200.00"},{"$f":"Gegevens[[#This Row],[Geschatte hoeveelheid]]*Gegevens[[#This Row],[Geschatte kosten per eenheid]]","v":{"v":0,"d":"€ 0.00"}},"<Aantal personen aanwezig op de locatie>"]
[null,"Extra kosten","T&O voor getuigenissen van klanten",null,{"v":100,"d":"€ 100.00"},{"$f":"Gegevens[[#This Row],[Geschatte hoeveelheid]]*Gegevens[[#This Row],[Geschatte kosten per eenheid]]","v":{"v":0,"d":"€ 0.00"}}]
[null,"Weggevertjes","Weggevertje #1",25,{"v":10,"d":"€ 10.00"},{"$f":"Gegevens[[#This Row],[Geschatte hoeveelheid]]*Gegevens[[#This Row],[Geschatte kosten per eenheid]]","v":{"v":250,"d":"€ 250.00"}},"<Beschrijving van giveaways>"]
[null,"Weggevertjes","Weggevertje #2",25,{"v":5,"d":"€ 5.00"},{"$f":"Gegevens[[#This Row],[Geschatte hoeveelheid]]*Gegevens[[#This Row],[Geschatte kosten per eenheid]]","v":{"v":125,"d":"€ 125.00"}},"<Beschrijving van weggevertje>"]
[null,"Promoties","Productweggevertjes",50,{"v":8,"d":"€ 8.00"},{"$f":"Gegevens[[#This Row],[Geschatte hoeveelheid]]*Gegevens[[#This Row],[Geschatte kosten per eenheid]]","v":{"v":400,"d":"€ 400.00"}}]
[null,"Promoties","Productkortingen",300,{"v":3,"d":"€ 3.00"},{"$f":"Gegevens[[#This Row],[Geschatte hoeveelheid]]*Gegevens[[#This Row],[Geschatte kosten per eenheid]]","v":{"v":900,"d":"€ 900.00"}}]
[null,"Promoties","Speciale aanbiedingen",200,{"v":2.5,"d":"€ 2.50"},{"$f":"Gegevens[[#This Row],[Geschatte hoeveelheid]]*Gegevens[[#This Row],[Geschatte kosten per eenheid]]","v":{"v":500,"d":"€ 500.00"}}]
[null,"Reclame","Brochures (ontwikkeling en productie)",{"v":5000,"d":"5,000"},{"v":0.15,"d":"€ 0.15"},{"$f":"Gegevens[[#This Row],[Geschatte hoeveelheid]]*Gegevens[[#This Row],[Geschatte kosten per eenheid]]","v":{"v":750,"d":"€ 750.00"}}]
[null,"Reclame","Verzendlijsten",{"v":15000,"d":"15,000"},{"v":0.04,"d":"€ 0.04"},{"$f":"Gegevens[[#This Row],[Geschatte hoeveelheid]]*Gegevens[[#This Row],[Geschatte kosten per eenheid]]","v":{"v":600,"d":"€ 600.00"}}]
[null,"Reclame","Briefkaarten",{"v":15000,"d":"15,000"},{"v":0.03,"d":"€ 0.03"},{"$f":"Gegevens[[#This Row],[Geschatte hoeveelheid]]*Gegevens[[#This Row],[Geschatte kosten per eenheid]]","v":{"v":450,"d":"€ 450.00"}}]
[null,"Reclame","Televisie",2,{"v":600,"d":"€ 600.00"},{"$f":"Gegevens[[#This Row],[Geschatte hoeveelheid]]*Gegevens[[#This Row],[Geschatte kosten per eenheid]]","v":{"v":1200,"d":"€ 1,200.00"}}]
[null,"Reclame","Radio",4,{"v":300,"d":"€ 300.00"},{"$f":"Gegevens[[#This Row],[Geschatte hoeveelheid]]*Gegevens[[#This Row],[Geschatte kosten per eenheid]]","v":{"v":1200,"d":"€ 1,200.00"}}]
[null,"Reclame","Kranten",6,{"v":220,"d":"€ 220.00"},{"$f":"Gegevens[[#This Row],[Geschatte hoeveelheid]]*Gegevens[[#This Row],[Geschatte kosten per eenheid]]","v":{"v":1320,"d":"€ 1,320.00"}}]
[null,"Reclame","Billboards",2,{"v":556,"d":"€ 556.00"},{"$f":"Gegevens[[#This Row],[Geschatte hoeveelheid]]*Gegevens[[#This Row],[Geschatte kosten per eenheid]]","v":{"v":1112,"d":"€ 1,112.00"}}]
[null,"Reclame","Zijkanten van bussen",3,{"v":125,"d":"€ 125.00"},{"$f":"Gegevens[[#This Row],[Geschatte hoeveelheid]]*Gegevens[[#This Row],[Geschatte kosten per eenheid]]","v":{"v":375,"d":"€ 375.00"}}]
[null,"PR","Liefdadigheidsevenementen",3,{"v":200,"d":"€ 200.00"},{"$f":"Gegevens[[#This Row],[Geschatte hoeveelheid]]*Gegevens[[#This Row],[Geschatte kosten per eenheid]]","v":{"v":600,"d":"€ 600.00"}}]
[null,"PR","Reclame",4,{"v":200,"d":"€ 200.00"},{"$f":"Gegevens[[#This Row],[Geschatte hoeveelheid]]*Gegevens[[#This Row],[Geschatte kosten per eenheid]]","v":{"v":800,"d":"€ 800.00"}}]
[null,"PR","Werknemerspromoties",6,{"v":200,"d":"€ 200.00"},{"$f":"Gegevens[[#This Row],[Geschatte hoeveelheid]]*Gegevens[[#This Row],[Geschatte kosten per eenheid]]","v":{"v":1200,"d":"€ 1,200.00"}}]
[null,"PR","Sponsoring",3,{"v":200,"d":"€ 200.00"},{"$f":"Gegevens[[#This Row],[Geschatte hoeveelheid]]*Gegevens[[#This Row],[Geschatte kosten per eenheid]]","v":{"v":600,"d":"€ 600.00"}}]

{"sheet":"CATEGORIEDIAGRAM","index":2,"n_rows":8,"n_cols":13,"rows_kept":8}
[]
[null,"MARKETINGBUDGETPLAN"]
[]
[null,null,"Primaire categorie"]
[null,null,"Audio-visuele diensten","Communicatie","Evenement","Extra kosten","Netwerken","Onderzoek","PR","Promoties","Reclame","Weggevertjes","Grand Total"]
[null,"Geschat subtotaal",{"v":0,"d":"€ 0.00"},{"v":7007,"d":"€ 7,007.00"},{"v":357,"d":"€ 357.00"},{"v":25650,"d":"€ 25,650.00"},{"v":2500,"d":"€ 2,500.00"},{"v":375,"d":"€ 375.00"},{"v":254,"d":"€ 254.00"},{"v":1800,"d":"€ 1,800.00"},{"v":3200,"d":"€ 3,200.00"},{"v":7100,"d":"€ 7,100.00"},{"v":48243,"d":"€ 48,243.00"}]
[]
[null," Draaigrafiekkolom met primaire categorieën en de geschatte bijbehorende subtotalen bevindt zich in deze cel."]